bitfinex-derivatives/quotes_SOLF0:USTF0_20240907
["timestamp","ask_amount","ask_price","bid_price","bid_amount"]
[1725725412641,26.99,129.02,128.99,3.8762]
[1725725413654,30.8657,129.02,128.99,3.8762]
[1725725413952,3.8764,128.99,128.88,7.7593]
[1725725414155,9.53,128.98,128.91,9.53]
[1725725414353,9.53,128.98,128.92,6.79291836]
[1725725414559,13.4069,128.98,128.93,3.9890767]
[1725725414856,13.4069,128.98,128.92,2.80384166]
[1725725415053,13.4069,128.98,128.91,13.38283399]
[1725725415451,13.4069,128.98,128.92,3.99313638]
[1725725415756,6.2,128.97,128.92,3.99313638]
[1725725415959,12.4,128.97,128.92,3.99313638]
[1725725416350,12.4,128.97,128.95,3.8776]
[1725725419651,21.93,128.97,128.92,3.99313638]
[1725725420050,12.4,128.97,128.92,13.52313638]
[1725725420855,16.277,128.97,128.94,3.8777]
[1725725421052,25.807,128.97,128.94,3.8777]
[1725725422660,2.0,128.96,128.94,3.8777]
[1725725426161,9.53,128.95,128.77,3.57925392]
[1725725426361,1.4083,128.95,128.86,9.53]
[1725725426562,9.53,128.93,128.86,13.32644713]
[1725725426768,1.4083,128.95,128.88,9.53]
[1725725426976,9.53,128.94,128.88,9.53]
[1725725427266,13.4081,128.94,128.9,3.879]
[1725725430065,9.53,128.93,128.89,3.91177839]
[1725725430370,9.53,128.93,128.86,9.53]
[1725725430765,9.53,128.93,128.86,13.39949099]
[1725725431273,16.4684,128.93,128.86,13.39949099]
[1725725431963,16.4684,128.93,128.9,3.8791]
[1725725437676,22.6684,128.93,128.9,3.8791]
[1725725438670,28.8684,128.93,128.9,3.8791]
[1725725438876,9.53,128.91,128.86,3.86949099]
[1725725439171,9.53,128.9,128.83,9.53]
[1725725439968,13.4093,128.9,128.87,3.8798]
[1725725441278,9.53,128.92,128.88,3.8796]
[1725725441479,9.53,128.92,128.84,9.53]
[1725725441480,9.53,128.92,128.87,3.85991253]
[1725725441780,9.53,128.92,128.88,3.8796]
[1725725442681,3.8789,128.91,128.88,3.8796]
[1725725451281,3.8787,128.92,128.89,3.8794]
[1725725451492,24.99,128.93,128.86,9.53]
[1725725451779,24.99,128.93,128.86,13.40543601]
[1725725451978,28.8684,128.93,128.9,3.879]
[1725725452587,28.8684,128.93,128.86,3.87543601]
[1725725452588,13.4087,128.92,128.89,3.8793]
[1725725453087,9.53,128.92,128.89,3.8793]
[1725725453292,3.8788,128.91,128.88,3.8795]
[1725725454382,2.0,128.9,128.88,3.8795]
[1725725455588,11.53,128.9,128.88,3.8795]
[1725725455881,14.59,128.9,128.88,3.8795]
[1725725458581,9.53,128.89,128.87,3.8799]
[1725725458985,9.53,128.89,128.82,10.8266]
[1725725459190,13.4096,128.89,128.82,10.8266]
[1725725459685,13.4096,128.89,128.86,3.8803]
[1725725459988,13.4098,128.88,128.81,1.3168]
[1725725460185,13.4098,128.88,128.84,3.8806]
[1725725460990,9.53,128.86,128.81,1.3168]
[1725725461292,15.73,128.86,128.81,1.3168]
[1725725461885,19.6105,128.86,128.83,3.8811]
[1725725462189,15.73,128.86,128.81,10.8468]
[1725725463284,15.73,128.86,128.84,3.8808]
[1725725465291,15.73,128.86,128.83,3.8811]
[1725725465488,19.6104,128.86,128.83,3.8811]
[1725725465690,9.53,128.85,128.78,9.53]
[1725725465893,3.8809,128.84,128.81,3.8816]
[1725725466084,9.53,128.83,128.81,3.8816]
[1725725466592,9.53,128.82,128.8,3.8821]
[1725725467595,6.21,128.81,128.8,3.8821]
[1725725468595,9.28,128.81,128.8,3.8821]
[1725725469794,5.0324,128.81,128.8,3.8821]
[1725725469993,3.6277,128.81,128.8,3.8821]
[1725725471384,6.2,128.86,128.85,3.8806]
[1725725473085,6.51,128.86,128.85,3.8806]
[1725725476496,5.49,128.86,128.85,3.8806]
[1725725484007,7.49,128.86,128.85,3.8806]
[1725725486303,7.49,128.86,128.84,3.8808]
[1725725487600,8.874,128.86,128.83,3.8811]
[1725725487908,18.404,128.86,128.83,3.8811]
[1725725488110,18.404,128.86,128.81,3.91959018]
[1725725489109,9.53,128.84,128.77,16.36633956]
[1725725489307,9.53,128.84,128.77,13.54420676]
[1725725489507,13.411,128.84,128.77,4.01420676]
[1725725489707,10.9392,128.83,128.8,3.8819]
[1725725490008,10.9392,128.83,128.79,3.95901257]
[1725725490211,14.8206,128.83,128.77,9.53]
[1725725492004,21.0206,128.83,128.77,9.53]
[1725725492411,21.0206,128.83,128.8,3.8821]
[1725725492817,21.3306,128.83,128.8,3.8821]
[1725725494523,7.9192,128.83,128.81,3.8817]
[1725725498416,7.9192,128.83,128.74,7.7677]
[1725725498417,23.27,128.81,128.58,3.57925392]
[1725725498611,23.27,128.81,128.67,9.53]
[1725725498917,3.8843,128.73,128.68,6.74971831]
[1725725499117,3.92834939,128.73,128.59,2.82525453]
[1725725499323,3.92834939,128.73,128.58,28.50074236]
[1725725499324,19.05889682,128.72,128.65,9.53]
[1725725499524,7.60808864,128.71,128.65,13.46806341]
[1725725499722,7.60808864,128.7,128.65,16.11976341]
[1725725499918,7.60848697,128.69,128.65,20.00636341]
[1725725500116,19.20125753,128.73,128.67,9.53]
[1725725500117,7.60848697,128.68,128.67,9.53]
[1725725500320,19.05861154,128.68,128.67,13.4161]
[1725725500920,13.4142,128.74,128.67,13.4161]
[1725725501116,11.44861596,128.68,128.67,13.4161]
[1725725501322,7.60653451,128.68,128.67,13.4161]
[1725725501723,19.05274858,128.68,128.67,13.4161]
[1725725502121,7.60653451,128.68,128.67,13.4161]
[1725725502430,19.04955048,128.68,128.66,5.1672]
[1725725502627,7.60653451,128.67,128.66,5.1672]
[1725725503226,3.8843,128.73,128.66,5.1672]
[1725725503427,22.93220059,128.72,128.66,5.1672]
[1725725503626,19.0461116,128.71,128.66,5.1672]
[1725725503930,19.0461116,128.7,128.66,5.1672]
[1725725504133,7.60290637,128.69,128.66,5.1672]
[1725725504333,3.8843,128.73,128.66,5.1672]
[1725725504526,3.8843,128.73,128.67,3.8858]
[1725725504729,19.04714619,128.72,128.67,9.53]
[1725725505034,7.60331595,128.71,128.68,3.8857]
[1725725505337,7.60323068,128.7,128.68,3.8857]
[1725725505520,13.414,128.74,128.68,3.8857]
[1725725505727,19.03761344,128.73,128.68,3.8857]
[1725725506022,19.03761344,128.72,128.67,3.886]
[1725725506226,7.59952807,128.71,128.67,3.886]
[1725725506428,7.59952807,128.7,128.67,3.886]
[1725725506627,3.8845,128.73,128.67,3.886]
[1725725506828,19.03561161,128.72,128.67,3.886]
[1725725507137,7.59872713,128.71,128.67,3.886]
[1725725508129,13.4146,128.72,128.67,3.886]
[1725725508332,7.60275666,128.71,128.66,5.1671]
[1725725508720,11.48765666,128.71,128.66,3.8862]
[1725725508925,7.60275666,128.7,128.65,10.47636341]
[1725725509533,11.48805666,128.7,128.65,10.47636341]
[1725725509727,7.60275666,128.69,128.65,10.47636341]
[1725725509935,3.8853,128.7,128.65,10.47636341]
[1725725510135,7.60255774,128.69,128.65,10.47636341]
[1725725510337,9.53,128.69,128.65,3.93806341]
[1725725510539,13.4155,128.69,128.64,3.8869]
[1725725511127,3.8855,128.69,128.65,3.83975753]
[1725725511333,13.72869015,128.73,128.65,3.83975753]
[1725725511334,13.4152,128.7,128.65,7.72635753]
[1725725511635,7.60269307,128.69,128.65,3.83975753]
[1725725511836,17.13187683,128.68,128.62,9.53]
[1725725512032,9.53,128.68,128.63,3.9239916]
[1725725512232,9.53,128.68,128.61,9.53]
[1725725512429,9.53,128.67,128.63,3.8871]
[1725725512639,9.53,128.67,128.63,7.76873519]
[1725725512937,9.53,128.67,128.63,3.8871]
[1725725513237,13.4161,128.67,128.63,3.8871]
[1725725513638,2.0,128.66,128.63,3.8871]
[1725725513840,2.0,128.66,128.62,7.85656815]
[1725725514033,9.53,128.65,128.59,2.7476]
[1725725514234,9.53,128.65,128.59,12.2776]
[1725725514540,9.53,128.65,128.62,3.8874]
[1725725515433,9.53,128.65,128.61,3.8877]
[1725725516629,9.53,128.65,128.62,3.8875]
[1725725516827,9.53,128.65,128.59,12.2776]
[1725725517427,13.4167,128.65,128.61,3.8877]
[1725725517633,9.53,128.65,128.59,12.2776]
[1725725518232,3.887,128.64,128.6,3.888]
[1725725518431,9.53,128.65,128.6,3.888]
[1725725518630,9.53,128.63,128.57,127.85267947]
[1725725518944,2.6407,128.64,128.54,9.53]
[1725725519134,11.66299015,128.66,128.54,9.53]
[1725725519135,9.53,128.65,128.57,9.53]
[1725725519439,9.53,128.65,128.59,3.8883]
[1725725519835,3.8874,128.63,128.59,3.8883]
[1725725520242,3.3912,128.66,128.4,22.1049157]
[1725725520243,9.53,128.6,128.4,22.1049157]
[1725725520450,16.98196023,128.66,128.57,9.53]
[1725725520639,9.53,128.64,128.53,142.45427251]
[1725725520838,9.53,128.64,128.58,9.53]
[1725725521137,9.53,128.64,128.59,3.88966658]
[1725725521436,3.3912,128.66,128.59,3.88966658]
[1725725521740,3.3912,128.66,128.61,9.53]
[1725725521741,0.32,128.63,128.61,9.53]
[1725725522536,0.32,128.63,128.62,3.8876]
[1725725522742,6.21,128.63,128.61,9.53]
[1725725523042,2.0,128.66,128.63,3.8871]
[1725725523246,2.0,128.66,128.64,9.53]
[1725725524547,2.0,128.66,128.65,3.8867]
[1725725524842,2.0,128.66,128.65,3.4067]
[1725725528141,2.0,128.66,128.6,1.3666]
[1725725528447,2.0,128.66,128.61,9.53]
[1725725528647,2.0,128.66,128.62,3.8874]
[1725725529040,2.0,128.66,128.61,9.53]
[1725725529240,2.0,128.66,128.63,3.8872]
[1725725530944,2.0,128.66,128.64,3.887]
[1725725531140,2.0,128.66,128.64,13.417]
[1725725531344,2.0,128.66,128.64,3.887]
[1725725532739,2.0,128.66,128.63,3.8872]
[1725725532945,2.0,128.66,128.62,9.53]
[1725725533347,2.0,128.66,128.64,9.53]
[1725725533749,2.0,128.66,128.64,3.8868]
[1725725534350,2.0,128.66,128.63,3.8872]
[1725725534548,2.0,128.66,128.61,9.53]
[1725725534749,9.53,128.68,128.61,9.53]
[1725725534948,9.53,128.68,128.63,3.8871]
[1725725535751,9.53,128.71,128.64,13.4168]
[1725725536345,11.53,128.71,128.64,13.4168]
[1725725536662,9.53,128.69,128.62,9.53]
[1725725537357,13.4156,128.69,128.64,3.8869]
[1725725537756,13.4156,128.69,128.63,3.8872]
[1725725537952,3.8858,128.68,128.63,3.8872]
[1725725538349,13.4163,128.67,128.59,6.68904725]
[1725725538548,13.4163,128.67,128.6,9.53]
[1725725538949,13.4163,128.67,128.62,3.8874]
[1725725539155,9.53,128.67,128.62,3.8874]
[1725725539451,3.8859,128.68,128.62,3.8874]
[1725725539651,3.8862,128.67,128.62,3.8874]
[1725725539848,9.53,128.67,128.61,3.8877]
[1725725540455,3.8865,128.66,128.61,3.8877]
[1725725540961,13.4167,128.65,128.6,3.8881]
[1725725541169,9.53,128.65,128.59,5.30634725]
[1725725541458,3.86331585,128.64,128.59,3.95784725]
[1725725541662,7.75051585,128.64,128.59,3.8885]
[1725725541856,7.75051585,128.64,128.6,3.79139138]
[1725725542354,17.28051585,128.64,128.6,3.79139138]
[1725725542561,13.4172,128.64,128.59,3.8885]
[1725725543157,13.4172,128.64,128.59,7.71760313]
[1725725543158,3.8873,128.63,128.59,7.71760313]
[1725725543460,9.53,128.64,128.59,7.71760313]
[1725725544262,13.4172,128.64,128.59,7.71760313]
[1725725544465,9.53,128.64,128.59,7.71760313]
[1725725544762,13.4171,128.64,128.59,7.71760313]
[1725725547257,9.53,128.61,128.56,3.81211602]
[1725725547463,9.53,128.61,128.54,9.53]
[1725725547663,13.418,128.61,128.56,3.8892]
[1725725547860,13.418,128.61,128.57,3.94976281]
[1725725548061,13.418,128.61,128.54,9.53]
[1725725548062,9.53,128.61,128.54,9.53]
[1725725548258,3.8883,128.6,128.55,3.8895]
[1725725548764,13.418,128.61,128.57,3.8889]
[1725725549170,13.418,128.61,128.54,13.36311299]
[1725725549171,9.53,128.61,128.54,3.83311299]
[1725725549364,13.4182,128.61,128.53,151.98427251]
[1725725549664,9.53,128.62,128.55,9.53]
[1725725549858,9.53,128.62,128.57,3.8889]
[1725725551456,5.23649217,128.63,128.57,3.8889]
[1725725551657,9.53,128.62,128.57,3.8889]
[1725725551863,9.53,128.62,128.58,3.8888]
[1725725552260,13.4177,128.62,128.57,3.8889]
[1725725552464,2.6152,128.64,128.58,9.53]
[1725725552770,2.6152,128.64,128.59,9.53]
[1725725552771,7.77273389,128.64,128.59,9.53]
[1725725552968,3.887,128.64,128.59,9.53]
[1725725553267,13.45890871,128.64,128.59,3.97947382]
[1725725553470,9.53,128.64,128.58,9.53]
[1725725553971,13.36738502,128.64,128.59,3.83271856]
[1725725554363,13.36738502,128.64,128.59,7.72101856]
[1725725554861,17.25458502,128.64,128.59,7.72101856]
[1725725555068,2.01,128.63,128.59,7.72101856]
[1725725556773,2.01,128.63,128.6,3.8881]
[1725725557563,11.54,128.63,128.54,4.018]
[1725725557765,2.01,128.63,128.55,9.53]
[1725725558068,13.4177,128.62,128.58,3.8886]
[1725725562287,5.8974,128.63,128.59,3.8884]
[1725725562489,15.4274,128.63,128.59,3.8884]
[1725725562690,3.8877,128.62,128.58,3.8885]
[1725725564183,15.4273,128.63,128.55,9.53]
[1725725564385,11.54,128.63,128.57,9.53]
[1725725565991,15.4273,128.63,128.59,3.8883]
[1725725566398,15.4273,128.63,128.57,9.53]
[1725725567193,15.4273,128.63,128.59,3.8882]
[1725725570198,13.4173,128.63,128.59,3.8882]
[1725725571794,2.01,128.62,128.59,3.8882]
[1725725572395,9.53,128.6,128.54,7.82981959]
[1725725572999,13.4184,128.6,128.56,3.8892]
[1725725573896,2.01,128.62,128.55,9.53]
[1725725574104,5.8977,128.62,128.58,3.8888]
[1725725576198,15.4277,128.62,128.58,3.8888]
[1725725577096,15.4277,128.62,128.59,3.8885]
[1725725577900,11.54,128.62,128.6,3.8881]
[1725725578196,11.54,128.62,128.54,17.35981959]
[1725725578390,11.54,128.62,128.59,3.8883]
[1725725578995,2.01,128.62,128.59,9.53]
[1725725579200,2.01,128.62,128.61,3.8879]
[1725725579495,3.85033832,128.67,128.61,9.53]
[1725725579701,13.416,128.68,128.63,3.8871]
[1725725580898,13.416,128.68,128.64,3.95606531]
[1725725580899,9.53,128.68,128.64,3.95606531]
[1725725581205,9.53,128.68,128.61,9.53]
[1725725581403,9.53,128.68,128.61,13.37097978]
[1725725581694,13.4158,128.68,128.63,3.8872]
[1725725582098,9.53,128.66,128.62,3.8875]
[1725725582603,9.53,128.65,128.61,3.8877]
[1725725583302,13.4168,128.65,128.61,3.8877]
[1725725584798,13.4168,128.65,128.62,3.8875]
[1725725585206,13.4168,128.65,128.61,3.8877]
[1725725586099,3.8871,128.64,128.61,3.8877]
[1725725586902,5.2316,128.64,128.61,3.8877]
[1725725587903,9.53,128.65,128.59,3.98553542]
[1725725588107,9.53,128.66,128.59,9.53]
[1725725588409,9.53,128.66,128.59,13.46226533]
[1725725588609,13.4166,128.66,128.62,3.8874]
[1725725588800,9.53,128.66,128.59,13.46226533]
[1725725589003,3.8872,128.64,128.61,3.8877]
[1725725589312,9.53,128.66,128.61,3.8877]
[1725725589618,9.53,128.66,128.62,3.8875]
[1725725589619,3.8868,128.65,128.62,3.8875]
[1725725590001,9.53,128.66,128.59,13.46226533]
[1725725590201,13.4165,128.66,128.59,13.46226533]
[1725725591002,13.4165,128.66,128.62,3.8874]
[1725725591403,14.696,128.67,128.59,13.46226533]
[1725725591716,10.8098,128.67,128.63,3.8871]
[1725725592018,3.8865,128.66,128.63,3.8871]
[1725725594115,3.8867,128.65,128.62,3.8874]
[1725725595419,3.8865,128.66,128.61,9.53]
[1725725596314,3.8865,128.66,128.63,3.8871]
[1725725596518,3.8867,128.65,128.59,3.89765922]
[1725725596710,10.8098,128.67,128.6,9.53]
[1725725597110,3.8865,128.66,128.6,9.53]
[1725725597816,3.8865,128.66,128.62,3.8874]
[1725725599324,13.4167,128.65,128.61,3.8877]
[1725725599625,13.4167,128.65,128.58,9.53]
[1725725599820,13.4167,128.65,128.58,13.34288611]
[1725725601223,13.4167,128.65,128.61,3.8877]
[1725725601814,9.53,128.64,128.58,3.81288611]
[1725725602012,10.8116,128.64,128.54,4.018]
[1725725602224,10.8116,128.64,128.56,9.53]
[1725725602726,9.53,128.63,128.56,9.53]
[1725725603131,3.98048977,128.62,128.54,13.548]
[1725725603424,3.8888,128.58,128.54,3.8898]
[1725725603631,13.39071731,128.6,128.53,142.45427251]
[1725725604020,3.8889,128.58,128.53,146.34437251]
[1725725605323,3.8891,128.57,128.53,146.34437251]
[1725725605522,3.8891,128.57,128.53,142.45427251]
[1725725605921,1.4017,128.59,128.47,2.7259]
[1725725605922,3.8898,128.55,128.47,2.7259]
[1725725606126,3.8898,128.55,128.5,3.891]
[1725725606318,9.53,128.55,128.5,3.8517193]
[1725725606516,9.53,128.55,128.48,9.53]
[1725725606721,9.53,128.55,128.48,13.41867278]
[1725725607431,3.89,128.54,128.49,3.8913]
[1725725609131,13.4198,128.55,128.5,3.8912]
[1725725609730,3.8895,128.56,128.51,3.8907]
[1725725609919,1.3307,128.57,128.49,9.53]
[1725725609920,10.8607,128.57,128.49,9.53]
[1725725610433,3.8898,128.55,128.5,3.891]
[1725725611130,3.8902,128.54,128.49,3.8914]
[1725725611925,3.8904,128.53,128.49,3.8914]
[1725725612126,9.53,128.55,128.5,3.8912]
[1725725612330,9.53,128.55,128.48,3.88867278]
[1725725612519,9.53,128.53,128.47,141.61335047]
[1725725612723,9.53,128.52,128.42,3.9976]
[1725725612920,13.3268777,128.52,128.44,9.53]
[1725725613123,9.53,128.5,128.44,13.40431735]
[1725725613329,9.53,128.5,128.44,3.87431735]
[1725725613533,9.53,128.5,128.42,3.9976]
[1725725613831,3.8917,128.49,128.45,3.8927]
[1725725614028,1.4127,128.51,128.46,3.94086097]
[1725725614228,5.3037,128.51,128.46,3.8922]
[1725725614428,5.3037,128.51,128.46,7.82994782]
[1725725614624,5.3037,128.51,128.46,3.8922]
[1725725614826,5.3037,128.51,128.47,3.96660439]
[1725725615127,1.4127,128.51,128.43,23.93]
[1725725615524,5.3038,128.51,128.46,3.8922]
[1725725615722,5.3038,128.51,128.46,7.71907217]
[1725725616237,27.8206,128.52,128.46,3.82687217]
[1725725616425,27.8206,128.52,128.44,23.93]
[1725725616828,27.8206,128.52,128.47,3.8919]
[1725725617030,3.8906,128.52,128.44,27.86040635]
[1725725617533,3.8906,128.52,128.48,3.8916]
[1725725618125,3.8906,128.52,128.44,27.86040635]
[1725725618126,7.70364926,128.53,128.49,3.8914]
[1725725618429,3.8904,128.53,128.49,3.8914]
[1725725619039,27.8201,128.54,128.49,3.8914]
[1725725619527,23.93,128.54,128.49,3.8914]
[1725725620131,3.8903,128.53,128.5,3.8912]
[1725725621125,27.8201,128.54,128.5,3.8912]
[1725725621731,7.7135646,128.53,128.46,23.93]
[1725725621923,3.8905,128.53,128.46,23.93]
[1725725622130,7.71083996,128.53,128.48,3.8916]
[1725725622432,3.8905,128.53,128.48,3.8916]
[1725725622627,3.8907,128.52,128.48,3.8916]
[1725725624428,23.93,128.54,128.49,3.8914]
[1725725624429,3.8905,128.53,128.49,3.8914]
[1725725625638,27.8205,128.53,128.49,3.8914]
[1725725626051,3.8908,128.52,128.48,3.8917]
[1725725627438,23.93,128.51,128.47,3.892]
[1725725628144,3.8912,128.5,128.47,3.892]
[1725725628735,3.8915,128.49,128.46,3.8923]
[1725725629930,4.012,128.52,128.45,3.90121438]
[1725725630239,23.93,128.51,128.43,131.22141168]
[1725725630632,3.8915,128.49,128.46,3.8922]
[1725725631345,3.8919,128.48,128.45,3.8926]
[1725725633537,3.8926,128.46,128.43,3.8932]
[1725725633839,23.93,128.49,128.4,1.4046]
[1725725634037,13.4522,128.47,128.43,3.8931]
[1725725635034,3.8927,128.45,128.42,3.8935]
[1725725636130,3.8927,128.45,128.41,3.8938]
[1725725638240,9.56,128.46,128.4,3.8941]
[1725725638440,9.56,128.46,128.39,10.9338]
[1725725639146,3.8929,128.45,128.41,3.8938]
[1725725639440,9.56,128.46,128.41,3.8938]
[1725725639837,3.8929,128.45,128.41,3.8938]
[1725725640038,9.56,128.44,128.4,3.8941]
[1725725640238,9.56,128.44,128.39,1.3738]
[1725725640945,9.56,128.44,128.41,3.8939]
[1725725642544,4.012,128.52,128.42,9.56]
[1725725642748,9.56,128.48,128.4,1.3192]
[1725725643042,9.56,128.48,128.41,9.56]
[1725725643236,9.56,128.48,128.41,10.8999]
[1725725643433,4.012,128.52,128.39,1.3738]
[1725725643434,9.56,128.46,128.39,1.3738]
[1725725643637,9.56,128.46,128.39,10.9338]
[1725725644145,4.012,128.52,128.39,10.9338]
[1725725644340,9.56,128.47,128.39,10.9338]
[1725725644646,13.4522,128.47,128.43,3.8931]
[1725725644844,9.56,128.48,128.44,3.90935285]
[1725725645048,9.56,128.49,128.42,9.56]
[1725725645239,9.56,128.49,128.45,3.8925]
[1725725645436,9.56,128.49,128.45,3.94244996]
[1725725645647,9.56,128.49,128.43,1.3781]
[1725725645946,9.56,128.49,128.46,3.8923]
[1725725646448,13.4514,128.5,128.46,3.8923]
[1725725647042,9.56,128.5,128.46,3.8923]
[1725725647453,9.56,128.5,128.45,3.8926]
[1725725648148,3.8915,128.49,128.45,3.8926]
[1725725648548,3.8913,128.5,128.46,3.8924]
[1725725648747,13.4513,128.5,128.46,3.8924]
[1725725650647,3.8915,128.49,128.46,3.8924]
[1725725651856,3.8913,128.5,128.47,3.892]
[1725725652153,13.4513,128.5,128.47,3.892]
[1725725653650,13.4516,128.49,128.46,3.8922]
[1725725653951,9.56,128.49,128.43,5.29251476]
[1725725654154,13.4509,128.51,128.48,3.8916]
[1725725656749,3.8909,128.51,128.48,3.8916]
[1725725657058,9.56,128.5,128.48,3.8916]
[1725725657858,13.4509,128.51,128.48,3.8916]
[1725725660363,13.4509,128.51,128.49,3.8915]
[1725725663162,13.4509,128.51,128.48,3.8916]
[1725725664864,4.012,128.52,128.51,3.8909]
[1725725665063,3.98856357,128.53,128.47,9.56]
[1725725665362,2.7194,128.57,128.48,9.56]
[1725725665660,2.7194,128.57,128.44,1.4104]
[1725725665661,9.56,128.53,128.46,9.56]
[1725725666059,9.56,128.53,128.49,3.8913]
[1725725666060,9.56,128.52,128.49,3.8913]
[1725725666363,9.56,128.52,128.46,3.9438699]
[1725725666563,9.56,128.53,128.46,9.56]
[1725725666765,9.56,128.53,128.46,13.38510896]
[1725725667062,3.8901,128.54,128.48,9.56]
[1725725667262,3.8901,128.54,128.5,3.8909]
[1725725667263,9.56,128.53,128.5,3.8909]
[1725725668056,9.56,128.53,128.51,3.83950809]
[1725725668361,9.56,128.53,128.51,7.73040809]
[1725725671064,13.4504,128.53,128.5,3.8911]
[1725725671258,13.4504,128.53,128.46,9.56]
[1725725671758,13.4504,128.53,128.49,3.8913]
[1725725673668,3.8907,128.52,128.48,3.8916]
[1725725673969,9.56,128.53,128.48,3.8916]
[1725725674167,3.8907,128.52,128.48,3.8916]
[1725725674567,9.56,128.53,128.48,3.8916]
[1725725674764,3.90026541,128.55,128.47,3.892]
[1725725674765,9.56,128.52,128.47,3.892]
[1725725674965,9.56,128.52,128.45,9.56]
[1725725675372,3.8912,128.5,128.47,3.892]
[1725725676063,3.891,128.51,128.48,3.8918]
[1725725677671,13.4507,128.52,128.48,3.8918]
[1725725678065,3.8907,128.52,128.49,3.8913]
[1725725680777,3.8909,128.51,128.49,3.8913]
[1725725683378,9.56,128.52,128.49,3.8913]
[1725725683379,3.8909,128.52,128.49,3.8913]
[1725725683979,13.4509,128.52,128.49,3.8913]
[1725725684975,3.8909,128.51,128.49,3.8913]
[1725725687791,13.4507,128.52,128.49,3.8913]
[1725725689295,3.8909,128.51,128.49,3.8913]
[1725725689490,3.90026541,128.55,128.46,9.56]
[1725725689793,3.8909,128.51,128.46,9.56]
[1725725689989,3.8909,128.51,128.48,3.8916]
[1725725690394,3.8907,128.52,128.46,9.56]
[1725725690694,9.56,128.54,128.47,9.56]
[1725725691195,3.8906,128.52,128.49,3.8914]
[1725725691491,3.89459754,128.54,128.48,9.56]
[1725725691686,3.8902,128.54,128.5,3.891]
[1725725691894,3.86501634,128.54,128.5,3.891]
[1725725692197,13.42501634,128.54,128.5,3.891]
[1725725692390,1.3329,128.56,128.5,3.891]
[1725725692589,9.56,128.54,128.5,3.891]
[1725725693385,13.46402545,128.54,128.5,3.891]
[1725725693584,3.8905,128.53,128.5,3.891]
[1725725700399,7.79412545,128.54,128.51,3.8908]
[1725725700795,3.90402545,128.54,128.52,3.8905]
[1725725701499,7.79412545,128.54,128.51,3.8908]
[1725725702402,7.79412545,128.54,128.52,3.8906]
[1725725703600,7.79412545,128.54,128.51,3.8907]
[1725725707003,3.8904,128.53,128.51,3.8907]
[1725725707201,3.8904,128.53,128.5,3.8911]
[1725725708001,13.54700186,128.54,128.5,3.8911]
[1725725708002,3.8907,128.52,128.5,3.8911]
[1725725708397,13.54700186,128.54,128.5,3.8911]
[1725725708600,3.8906,128.53,128.5,3.8911]
[1725725713402,9.56,128.52,128.44,5.33902702]
[1725725713609,9.56,128.52,128.45,9.56]
[1725725714004,3.8911,128.51,128.47,3.8918]
[1725725715711,9.56,128.52,128.48,3.8918]
[1725725715905,13.54700186,128.54,128.48,13.4518]
[1725725716413,3.8909,128.51,128.48,13.4518]
[1725725716614,9.56,128.53,128.44,5.33902702]
[1725725716920,3.8923,128.47,128.43,1.3781]
[1725725717215,9.56,128.48,128.43,9.24908007]